fUST/lending_fUST_20250719
["ID","MTS","AMOUNT","RATE_DAILY","PERIOD"]
[373140960,1752881450187,-151.0,0.00017725,2]
[373140961,1752881450196,-151.0,0.00017725,2]
[373140962,1752881450206,-151.0,0.00017725,2]
[373140963,1752881450216,-438.949853,0.00017725,2]
[373140964,1752881450226,-438.949853,0.00017725,2]
[373140965,1752881450235,-151.0,0.00017725,2]
[373140966,1752881450245,-151.0,0.00017725,2]
[373140967,1752881450255,-305.26285468,0.00017753,2]
[373140968,1752881450265,-500.0,0.00017753,2]
[373140969,1752881450373,-500.0,0.00017753,2]
[373140970,1752881450383,-150.39478184,0.00017753,2]
[373140971,1752881450392,-500.0,0.00017753,2]
[373140972,1752881450403,-500.0,0.00017753,2]
[373140973,1752881450412,-374.41320545,0.00017753,2]
[373140974,1752881450421,-500.0,0.00017753,2]
[373140975,1752881450431,-617.91842792,0.00017753,2]
[373140976,1752881450441,-203.96689228,0.00017753,2]
[373140977,1752881450450,-500.0,0.00017753,2]
[373140978,1752881450459,-503.93358597,0.00017753,2]
[373140979,1752881450469,-500.0,0.00017753,2]
[373140980,1752881450478,-500.0,0.00017753,2]
[373140981,1752881450487,-500.0,0.00017753,2]
[373140982,1752881450497,-501.46377135,0.00017753,2]
[373140983,1752881450507,-500.0,0.00017753,2]
[373140984,1752881450516,-500.0,0.00017753,2]
[373140985,1752881450526,-500.0,0.00017753,2]
[373140986,1752881450536,-500.0,0.00017753,2]
[373140987,1752881450545,-500.0,0.00017753,2]
[373140988,1752881450554,-500.0,0.00017753,2]
[373140989,1752881450562,-500.0,0.00017753,2]
[373140990,1752881450571,-500.0,0.00017753,2]
[373140991,1752881450580,-500.0,0.00017753,2]
[373140992,1752881450589,-500.0,0.00017753,2]
[373140993,1752881450598,-500.0,0.00017753,2]
[373140994,1752881450609,-500.0,0.00017753,2]
[373140995,1752881450618,-1084.38,0.00017798,3]
[373140996,1752881450627,-542.18,0.00017798,3]
[373140997,1752881450636,-357.2,0.00017798,3]
[373140998,1752881450645,-200.0,0.00017798,2]
[373140999,1752881450655,-47892.47257762,0.00017799,2]
[373141000,1752881450664,-151.0,0.00017799,2]
[373141001,1752881450673,-151.0,0.00017799,2]
[373141002,1752881450682,-267.480686,0.00017799,2]
[373141003,1752881450691,-267.480686,0.00017799,2]
[373141004,1752881450701,-151.0,0.00017799,2]
[373141005,1752881450710,-151.0,0.00017799,2]
[373141006,1752881450719,-151.0,0.00017799,2]
[373141007,1752881450728,-151.0,0.00017799,2]
[373141008,1752881450738,-151.0,0.00017799,2]
[373141009,1752881450747,-151.0,0.00017799,2]
[373141010,1752881450757,-151.0,0.00017799,2]
[373141011,1752881450766,-151.0,0.00017799,2]
[373141012,1752881450775,-151.0,0.00017799,2]
[373141013,1752881450785,-151.0,0.00017799,2]
[373141014,1752881450795,-186.36218,0.00017799,2]
[373141015,1752881450804,-151.0,0.00017799,2]
[373141016,1752881450814,-318.834368,0.00017799,2]
[373141017,1752881450823,-318.834368,0.00017799,2]
[373141018,1752881450833,-151.0,0.00017799,2]
[373141019,1752881450843,-174.255342,0.00017799,2]
[373141020,1752881450852,-174.255342,0.00017799,2]
[373141021,1752881450865,-151.0,0.00017799,2]
[373141022,1752881450875,-151.0,0.00017799,2]
[373141023,1752881450885,-151.0,0.000178,2]
[373141024,1752881450895,-538.0,0.00017808,2]
[373141025,1752881450905,-500.0,0.00017808,2]
[373141026,1752881450915,-180.732567,0.00017808,2]
[373141027,1752881450926,-180.732567,0.00017808,2]
[373141028,1752881450935,-151.0,0.00017808,2]
[373141029,1752881450945,-285.623926,0.00017808,2]
[373141030,1752881450954,-151.0,0.00017808,2]
[373141031,1752881450964,-553.12,0.00017808,2]
[373141032,1752881450974,-460.0,0.00017808,2]
[373141033,1752881450983,-581.15483969,0.00017808,2]
[373141034,1752881450993,-1462.88,0.00017808,2]
[373141035,1752881451004,-460.0,0.00017808,2]
[373141036,1752881451014,-460.0,0.00017808,2]
[373141037,1752881451023,-460.0,0.00017808,2]
[373141038,1752881451033,-460.0,0.00017808,2]
[373141039,1752881451042,-2605.37,0.00017808,2]
[373141040,1752881451052,-625.28,0.00017808,2]
[373141041,1752881451062,-1638.8,0.00017808,2]
[373141042,1752881451072,-460.0,0.00017808,2]
[373141043,1752881451081,-2619.64,0.00017808,2]
[373141044,1752881451090,-460.0,0.00017808,2]
[373141045,1752881451100,-460.0,0.00017808,2]
[373141046,1752881451111,-1379.65,0.00017808,2]
[373141047,1752881451120,-460.0,0.00017808,2]
[373141048,1752881451131,-2040.8,0.00017808,2]
[373141049,1752881451140,-762.54,0.00017808,2]
[373141050,1752881451150,-460.0,0.00017808,2]
[373141051,1752881451160,-487.87,0.00017808,2]
[373141052,1752881451169,-460.0,0.00017808,2]
[373141053,1752881451179,-850.62602542,0.00017808,2]
[373141054,1752881451339,-987.84397458,0.00017808,2]
[373141055,1752881451349,-509.77,0.00017808,2]
[373141056,1752881451360,-779.64,0.00017808,2]
[373141057,1752881451369,-460.0,0.00017808,2]
[373141058,1752881451378,-460.0,0.00017808,2]
[373141059,1752881451387,-3722.74,0.00017808,2]
[373141060,1752881451397,-728.93,0.00017808,2]
[373141061,1752881451407,-1135.32,0.00017808,2]
[373141062,1752881451416,-576.95,0.00017808,2]
[373141063,1752881451426,-460.0,0.00017808,2]
[373141064,1752881451435,-460.0,0.00017808,2]
[373141065,1752881451444,-479.43,0.00017808,2]
[373141066,1752881451454,-468.41277293,0.00017808,2]
[373141067,1752881451463,-460.0,0.00017808,2]
[373141068,1752881451472,-460.0,0.00017808,2]
[373141069,1752881451482,-480.07,0.00017808,2]
[373141070,1752881451491,-460.0,0.00017808,2]
[373141071,1752881451501,-1372.18,0.00017808,2]
[373141072,1752881451511,-481.2,0.00017808,2]
[373141073,1752881451520,-460.0,0.00017808,2]
[373141074,1752881451530,-1510.53,0.00017808,2]
[373141075,1752881451539,-460.0,0.00017808,2]
[373141076,1752881451549,-547.73,0.00017808,2]
[373141077,1752881451558,-766.89,0.00017808,2]
[373141078,1752881451567,-4219.87,0.00017808,2]
[373141079,1752881451577,-534.43,0.00017808,2]
[373141080,1752881451586,-460.0,0.00017808,2]
[373141081,1752881451595,-4189.75,0.00017808,2]
[373141082,1752881451605,-151.0,0.00017809,2]
[373141083,1752881451614,-151.0,0.00017809,2]
[373141084,1752881451624,-151.0,0.00017809,2]
[373141085,1752881451634,-182.594941,0.00017809,2]
[373141086,1752881451643,-182.594941,0.00017809,2]
[373141087,1752881451652,-151.0,0.0001781,2]
[373141088,1752881451662,-151.0,0.00017812,2]
[373141089,1752881451672,-160.0,0.00017832,2]
[373141090,1752881451681,-151.0,0.00017845,2]
[373141091,1752881451691,-151.0,0.00017845,2]
[373141092,1752881451701,-1500.0,0.00017868,2]
[373141093,1752881451711,-1929.32133275,0.000179,2]
[373141094,1752881451720,-500.0,0.00017913,2]
[373141095,1752881451730,-319.66010711,0.00017913,2]
[373141096,1752881451740,-500.0,0.00017913,2]
[373141097,1752881451750,-1680.0,0.0001796,2]
[373141098,1752881451759,-347.74056755,0.00017962,2]
[373141099,1752881451771,-72.25943245,0.00017962,2]
[373141100,1752881451780,-420.0,0.00017962,2]
[373141101,1752881451790,-133.82026005,0.0001798,2]
[373141102,1752881451936,-642.97157885,0.00016437,2]
[373141103,1752881451946,-460.0,0.00016438,2]
[373141104,1752881451956,-460.0,0.00016438,2]
[373141105,1752881451965,-460.0,0.00016438,2]
[373141106,1752881451975,-460.0,0.00016438,2]
[373141107,1752881451986,-895.621787,0.00016712,2]
[373141108,1752881451996,-895.621787,0.00016938,2]
[373141109,1752881452005,-895.621787,0.00016986,2]
[373141110,1752881452015,-17.17973995,0.0001798,2]
[373141111,1752881452026,-181.557296,0.0001798,2]
[373141112,1752881452037,-180.732567,0.0001799,2]
[373141113,1752881452046,-180.732567,0.0001799,2]
[373141114,1752881452057,-151.0,0.0001799,2]
[373141115,1752881452066,-151.0,0.0001799,2]
[373141116,1752881452076,-151.0,0.0001799,2]
[373141117,1752881452086,-3222.00339136,0.00018,2]
[373141118,1752881452095,-151.0,0.00018,2]
[373141119,1752881452105,-151.0,0.00018,2]
[373141120,1752881452114,-151.0,0.00018013,2]
[373141121,1752881452123,-151.0,0.00018013,2]
[373141122,1752881452133,-151.0,0.00018013,2]
[373141123,1752881452142,-174.255342,0.00018013,2]
[373141124,1752881452151,-174.255342,0.00018013,2]
[373141125,1752881452160,-250.0,0.00018039,2]
[373141126,1752881452169,-151.0,0.00018048,2]
[373141127,1752881452179,-318.834368,0.00018052,2]
[373141128,1752881452189,-318.834368,0.00018052,2]
[373141129,1752881452198,-151.0,0.00018052,2]
[373141130,1752881452208,-151.0,0.00018052,2]
[373141131,1752881452218,-1680.0,0.00018052,2]
[373141132,1752881452228,-538.0,0.00018082,2]
[373141133,1752881452238,-500.0,0.00018082,2]
[373141134,1752881452247,-151.0,0.00018082,2]
[373141135,1752881452257,-151.0,0.00018082,2]
[373141136,1752881452267,-151.0,0.00018082,2]
[373141137,1752881452276,-151.0,0.00018082,2]
[373141138,1752881452286,-151.0,0.00018082,2]
[373141139,1752881452296,-151.0,0.00018082,2]
[373141140,1752881452306,-151.0,0.00018082,2]
[373141141,1752881452315,-151.0,0.00018082,2]
[373141142,1752881452325,-154.929881,0.00018082,2]
[373141143,1752881452335,-438.949853,0.00018082,2]
[373141144,1752881452344,-438.949853,0.00018082,2]
[373141145,1752881452354,-151.0,0.00018082,2]
[373141146,1752881452365,-167.435306,0.00018082,2]
[373141147,1752881452375,-151.0,0.00018082,2]
[373141148,1752881452385,-553.12,0.00018082,2]
[373141149,1752881452498,-460.0,0.00018082,2]
[373141150,1752881452509,-1462.88,0.00018082,2]
[373141151,1752881452518,-460.0,0.00018082,2]
[373141152,1752881452528,-460.0,0.00018082,2]
[373141153,1752881452538,-460.0,0.00018082,2]
[373141154,1752881452548,-460.0,0.00018082,2]
[373141155,1752881452557,-2605.37,0.00018082,2]
[373141156,1752881452567,-625.28,0.00018082,2]
[373141157,1752881452576,-1638.8,0.00018082,2]
[373141158,1752881452586,-460.0,0.00018082,2]
[373141159,1752881452595,-2619.64,0.00018082,2]
[373141160,1752881452607,-460.0,0.00018082,2]
[373141161,1752881452616,-227.24,0.00018082,2]
[373141162,1752881452626,-1379.65,0.00018082,2]
[373141163,1752881452635,-460.0,0.00018082,2]
[373141164,1752881452646,-2040.8,0.00018082,2]
[373141165,1752881452655,-762.54,0.00018082,2]
[373141166,1752881452665,-460.0,0.00018082,2]
[373141167,1752881452674,-1838.47,0.00018082,2]
[373141168,1752881452684,-509.77,0.00018082,2]
[373141169,1752881452694,-779.64,0.00018082,2]
[373141170,1752881452703,-460.0,0.00018082,2]
[373141171,1752881452713,-3722.74,0.00018082,2]
[373141172,1752881452722,-728.93,0.00018082,2]
[373141173,1752881452732,-1135.32,0.00018082,2]
[373141174,1752881452741,-576.95,0.00018082,2]
[373141175,1752881452751,-460.0,0.00018082,2]
[373141176,1752881452760,-479.43,0.00018082,2]
[373141177,1752881452770,-460.0,0.00018082,2]
[373141178,1752881452779,-460.0,0.00018082,2]
[373141179,1752881452789,-480.07,0.00018082,2]
[373141180,1752881452799,-1372.18,0.00018082,2]
[373141181,1752881452808,-460.0,0.00018082,2]
[373141182,1752881452817,-1510.53,0.00018082,2]
[373141183,1752881452827,-460.0,0.00018082,2]
[373141184,1752881452837,-547.73,0.00018082,2]
[373141185,1752881452847,-766.89,0.00018082,2]
[373141186,1752881452857,-4219.87,0.00018082,2]
[373141187,1752881452867,-534.43,0.00018082,2]
[373141188,1752881452876,-460.0,0.00018082,2]
[373141189,1752881452886,-4189.75,0.00018082,2]
[373141190,1752881452896,-1929.32133264,0.00018141,2]
[373141191,1752881452905,-153.0,0.00018174,2]
[373141192,1752881452920,-153.0,0.0001818,2]
[373141193,1752881452931,-153.0,0.0001818,2]
[373141194,1752881452941,-153.0,0.0001818,2]
[373141195,1752881452951,-153.0,0.0001818,2]
[373141196,1752881452963,-153.0,0.0001818,2]
[373141197,1752881452972,-178.021619,0.0001818,2]
[373141198,1752881452981,-321.3878512,0.0001818,2]
[373141199,1752881452991,-1153.915637,0.0001818,2]
[373141200,1752881453000,-151.0,0.000182,2]
[373141201,1752881453009,-151.0,0.000182,2]
[373141202,1752881453019,-151.0,0.000182,2]
[373141203,1752881453028,-151.0,0.000182,2]
[373141204,1752881453038,-1000.0,0.00018301,2]
[373141205,1752881453047,-1000.0,0.00018301,2]
[373141206,1752881453057,-262.34660236,0.00018301,2]
[373141207,1752881453066,-1000.0,0.00018301,2]
[373141208,1752881453076,-1120.06316809,0.00018301,2]
[373141209,1752881453085,-1000.0,0.00018301,2]
[373141210,1752881453095,-1000.0,0.00018301,2]
[373141211,1752881453105,-215.0738,0.00018307,2]
[373141212,1752881453116,-1063.56117184,0.00018327,2]
[373141213,1752881453126,-151.0,0.00018335,2]
[373141214,1752881453135,-174.255342,0.00018335,2]
[373141215,1752881453144,-174.255342,0.00018335,2]
[373141216,1752881453153,-538.0,0.00018356,2]
[373141217,1752881453163,-500.0,0.00018356,2]
[373141218,1752881453173,-151.0,0.00018356,2]
[373141219,1752881453183,-264.104677,0.00018356,2]
[373141220,1752881453192,-264.104677,0.00018356,2]
[373141221,1752881453201,-151.0,0.00018356,2]
[373141222,1752881453211,-267.480686,0.00018356,2]
[373141223,1752881453221,-267.480686,0.00018356,2]
[373141224,1752881453230,-151.0,0.00018356,2]
[373141225,1752881453240,-151.0,0.00018356,2]
[373141226,1752881453249,-151.0,0.00018356,2]
[373141227,1752881453259,-151.0,0.00018356,2]
[373141228,1752881453268,-151.0,0.00018356,2]
[373141229,1752881453277,-151.0,0.00018356,2]
[373141230,1752881453286,-151.0,0.00018356,2]
[373141231,1752881453295,-318.834368,0.00018356,2]
[373141232,1752881453305,-318.834368,0.00018356,2]
[373141233,1752881453315,-553.12,0.00018356,2]
[373141234,1752881453324,-460.0,0.00018356,2]
[373141235,1752881453333,-1462.88,0.00018356,2]
[373141236,1752881453343,-460.0,0.00018356,2]
[373141237,1752881453352,-460.0,0.00018356,2]
[373141238,1752881453364,-151.0,0.00018356,2]
[373141239,1752881453374,-240.045816,0.00018356,2]
[373141240,1752881453383,-460.0,0.00018356,2]
[373141241,1752881453393,-460.0,0.00018356,2]
[373141242,1752881453402,-2605.37,0.00018356,2]
[373141243,1752881453412,-625.28,0.00018356,2]
[373141244,1752881453422,-1279.71847697,0.00018356,2]
[373141245,1752881453526,-429.35548269,0.00016438,2]
[373141246,1752881453538,-30.64451731,0.00016438,2]
[373141247,1752881453548,-460.0,0.00016438,2]
[373141248,1752881453558,-460.0,0.00016712,2]
[373141249,1752881453568,-895.621787,0.0001726,2]
[373141250,1752881453577,-895.621787,0.00017534,2]
[373141251,1752881453587,-895.621787,0.00017799,2]
[373141252,1752881453596,-895.621787,0.00018052,2]
[373141253,1752881453606,-359.08152303,0.00018356,2]
[373141254,1752881453616,-460.0,0.00018356,2]
[373141255,1752881453626,-2619.64,0.00018356,2]
[373141256,1752881453635,-460.0,0.00018356,2]
[373141257,1752881453645,-1379.65,0.00018356,2]
[373141258,1752881453655,-554.02954728,0.00018356,2]
[373141259,1752881453665,-2040.8,0.00018356,2]
[373141260,1752881453675,-762.54,0.00018356,2]
[373141261,1752881453685,-460.0,0.00018356,2]
[373141262,1752881453695,-1838.47,0.00018356,2]
[373141263,1752881453704,-509.77,0.00018356,2]
[373141264,1752881453714,-779.64,0.00018356,2]
[373141265,1752881453723,-460.0,0.00018356,2]
[373141266,1752881453733,-3722.74,0.00018356,2]
[373141267,1752881453743,-728.93,0.00018356,2]
[373141268,1752881453753,-1135.32,0.00018356,2]
[373141269,1752881453762,-576.95,0.00018356,2]
[373141270,1752881453771,-460.0,0.00018356,2]
[373141271,1752881453781,-479.43,0.00018356,2]
[373141272,1752881453790,-460.0,0.00018356,2]
[373141273,1752881453800,-460.0,0.00018356,2]
[373141274,1752881453809,-480.07,0.00018356,2]
[373141275,1752881453818,-1372.18,0.00018356,2]
[373141276,1752881453828,-460.0,0.00018356,2]
[373141277,1752881453837,-1510.53,0.00018356,2]
[373141278,1752881453846,-460.0,0.00018356,2]
[373141279,1752881453856,-547.73,0.00018356,2]
[373141280,1752881453866,-766.89,0.00018356,2]
[373141281,1752881453875,-4219.87,0.00018356,2]
[373141282,1752881453883,-534.43,0.00018356,2]
[373141283,1752881453893,-460.0,0.00018356,2]
[373141284,1752881453902,-4189.75,0.00018356,2]
[373141285,1752881453913,-895.621787,0.00018356,2]
[373141286,1752881453924,-180.732567,0.00018357,2]
[373141287,1752881453933,-180.732567,0.00018357,2]
[373141288,1752881453944,-223.173852,0.00018357,2]
[373141289,1752881453954,-151.0,0.00018358,2]
[373141290,1752881453964,-151.0,0.00018358,2]
[373141291,1752881453973,-151.0,0.00018358,2]
[373141292,1752881453983,-151.0,0.00018362,2]
[373141293,1752881453992,-260.0,0.0001838,2]
[373141294,1752881454001,-1929.32133264,0.00018383,2]
[373141295,1752881454010,-1500.0,0.00018416,2]
[373141296,1752881454019,-1000.0,0.0001846,2]
[373141297,1752881454029,-151.0,0.000185,2]
[373141298,1752881454037,-151.0,0.000185,2]
[373141299,1752881454046,-151.0,0.00018555,2]
[373141300,1752881454054,-170.06651,0.00018555,2]
[373141301,1752881454063,-769.081,0.00018564,2]
[373141302,1752881454073,-178.372,0.00018564,2]
[373141303,1752881454082,-4254.24468735,0.00018598,2]
[373141304,1752881454092,-1929.32133264,0.00018624,2]
[373141305,1752881454102,-538.0,0.0001863,2]
[373141306,1752881454112,-500.0,0.0001863,2]
[373141307,1752881454122,-151.0,0.0001863,2]
[373141308,1752881454131,-182.594941,0.0001863,2]
[373141309,1752881454141,-182.594941,0.0001863,2]
[373141310,1752881454150,-151.0,0.0001863,2]
[373141311,1752881454160,-151.0,0.0001863,2]
[373141312,1752881454170,-151.0,0.0001863,2]
[373141313,1752881454179,-151.0,0.0001863,2]
[373141314,1752881454189,-151.932486,0.0001863,2]
[373141315,1752881454199,-318.834368,0.0001863,2]
[373141316,1752881454208,-318.834368,0.0001863,2]
[373141317,1752881454218,-553.12,0.0001863,2]
[373141318,1752881454227,-460.0,0.0001863,2]
[373141319,1752881454237,-1462.88,0.0001863,2]
[373141320,1752881454247,-174.255342,0.0001863,2]
[373141321,1752881454257,-174.255342,0.0001863,2]
[373141322,1752881454267,-460.0,0.0001863,2]
[373141323,1752881454277,-460.0,0.0001863,2]
[373141324,1752881454286,-151.0,0.0001863,2]
[373141325,1752881454296,-320.533141,0.0001863,2]
[373141326,1752881454306,-460.0,0.0001863,2]
[373141327,1752881454316,-2605.37,0.0001863,2]
[373141328,1752881454326,-625.28,0.0001863,2]
[373141329,1752881454336,-1638.8,0.0001863,2]
[373141330,1752881454346,-460.0,0.0001863,2]
[373141331,1752881454355,-2619.64,0.0001863,2]
[373141332,1752881454366,-460.0,0.0001863,2]
[373141333,1752881454376,-1379.65,0.0001863,2]
[373141334,1752881454386,-2040.8,0.0001863,2]
[373141335,1752881454396,-762.54,0.0001863,2]
[373141336,1752881454407,-460.0,0.0001863,2]
[373141337,1752881454418,-1838.47,0.0001863,2]
[373141338,1752881454429,-779.64,0.0001863,2]
[373141339,1752881454438,-509.77,0.0001863,2]
[373141340,1752881454448,-460.0,0.0001863,2]
[373141341,1752881454458,-728.93,0.0001863,2]
[373141342,1752881454469,-3722.74,0.0001863,2]
[373141343,1752881454479,-1135.32,0.0001863,2]
[373141344,1752881454489,-576.95,0.0001863,2]
[373141345,1752881454499,-460.0,0.0001863,2]
[373141346,1752881454509,-479.43,0.0001863,2]
[373141347,1752881454519,-460.0,0.0001863,2]
[373141348,1752881454618,-460.0,0.0001863,2]
[373141349,1752881454628,-480.07,0.0001863,2]
[373141350,1752881454638,-1372.18,0.0001863,2]
[373141351,1752881454647,-460.0,0.0001863,2]
[373141352,1752881454657,-1510.53,0.0001863,2]
[373141353,1752881454667,-547.73,0.0001863,2]
[373141354,1752881454676,-766.89,0.0001863,2]
[373141355,1752881454686,-4219.87,0.0001863,2]
[373141356,1752881454695,-534.43,0.0001863,2]
[373141357,1752881454705,-460.0,0.0001863,2]
[373141358,1752881454715,-4189.75,0.0001863,2]
[373141359,1752881454725,-151.0,0.00018631,2]
[373141360,1752881454734,-151.0,0.00018631,2]
[373141361,1752881454744,-181.557296,0.00018631,2]
[373141362,1752881454754,-438.949853,0.00018631,2]
[373141363,1752881454763,-438.949853,0.00018631,2]
[373141364,1752881454773,-151.0,0.00018632,2]
[373141365,1752881454782,-151.0,0.00018636,2]
[373141366,1752881454792,-500.0,0.00018637,2]
[373141367,1752881454801,-2870.25870827,0.00018666,2]
[373141368,1752881454810,-151.0,0.00018693,2]
[373141369,1752881454820,-151.0,0.000187,2]
[373141370,1752881454830,-151.0,0.00018705,2]
[373141371,1752881454839,-151.0,0.00018705,2]
[373141372,1752881454848,-151.0,0.000188,2]
[373141373,1752881454857,-1500.0,0.00018849,2]
[373141374,1752881454867,-1503.27154105,0.00018849,2]
[373141375,1752881454877,-1500.0,0.00018849,2]
[373141376,1752881454886,-1500.0,0.00018849,2]
[373141377,1752881454896,-1500.0,0.00018849,2]
[373141378,1752881454905,-1929.32133264,0.00018866,2]
[373141379,1752881454917,-9562.47849599,0.00018868,2]
[373141380,1752881454926,-3244.92317085,0.000189,2]
[373141381,1752881454936,-302.8183302,0.000189,2]
[373141382,1752881454946,-302.78807257,0.000189,2]
[373141383,1752881454955,-538.0,0.00018904,2]
[373141384,1752881454967,-500.0,0.00018904,2]
[373141385,1752881454976,-180.732567,0.00018904,2]
[373141386,1752881454986,-180.732576,0.00018904,2]
[373141387,1752881454996,-151.0,0.00018904,2]
[373141388,1752881455006,-151.0,0.00018904,2]
[373141389,1752881455016,-151.0,0.00018904,2]
[373141390,1752881455027,-151.0,0.00018904,2]
[373141391,1752881455038,-318.834368,0.00018904,2]
[373141392,1752881455049,-318.834368,0.00018904,2]
[373141393,1752881455062,-553.12,0.00018904,2]
[373141394,1752881455071,-460.0,0.00018904,2]
[373141395,1752881455081,-1462.88,0.00018904,2]
[373141396,1752881455091,-174.255342,0.00018904,2]
[373141397,1752881455101,-174.255351,0.00018904,2]
[373141398,1752881455110,-460.0,0.00018904,2]
[373141399,1752881455120,-197.32658262,0.00018904,2]
[373141400,1752881455129,-151.0,0.00018904,2]
[373141401,1752881455139,-460.0,0.00018904,2]
[373141402,1752881455150,-2605.37,0.00018904,2]
[373141403,1752881455159,-625.28,0.00018904,2]
[373141404,1752881455169,-1638.8,0.00018904,2]
[373141405,1752881455178,-460.0,0.00018904,2]
[373141406,1752881455188,-2619.64,0.00018904,2]
[373141407,1752881455198,-460.0,0.00018904,2]
[373141408,1752881455208,-1379.65,0.00018904,2]
[373141409,1752881455217,-2040.8,0.00018904,2]
[373141410,1752881455226,-762.54,0.00018904,2]
[373141411,1752881455236,-314.4592542,0.00018904,2]
[373141412,1752881455246,-1838.47,0.00018904,2]
[373141413,1752881455256,-779.64,0.00018904,2]
[373141414,1752881455266,-509.77,0.00018904,2]
[373141415,1752881455276,-460.0,0.00018904,2]
[373141416,1752881455285,-728.93,0.00018904,2]
[373141417,1752881455295,-3722.74,0.00018904,2]
[373141418,1752881455304,-1135.32,0.00018904,2]
[373141419,1752881455314,-576.95,0.00018904,2]
[373141420,1752881455324,-460.0,0.00018904,2]
[373141421,1752881455334,-479.43,0.00018904,2]
[373141422,1752881455343,-460.0,0.00018904,2]
[373141423,1752881455354,-460.0,0.00018904,2]
[373141424,1752881455364,-480.07,0.00018904,2]
[373141425,1752881455374,-1372.18,0.00018904,2]
[373141426,1752881455383,-460.0,0.00018904,2]
[373141427,1752881455393,-1510.53,0.00018904,2]
[373141428,1752881455403,-547.73,0.00018904,2]
[373141429,1752881455413,-766.89,0.00018904,2]
[373141430,1752881455423,-4219.87,0.00018904,2]
[373141431,1752881455432,-534.43,0.00018904,2]
[373141432,1752881455442,-460.0,0.00018904,2]
[373141433,1752881455451,-4189.75,0.00018904,2]
[373141434,1752881455460,-151.0,0.00018905,2]
[373141435,1752881455470,-360.0,0.00018928,2]
[373141436,1752881455479,-221.653902,0.00018932,2]
[373141437,1752881455489,-429.318869,0.0001899,2]
[373141438,1752881455499,-429.318869,0.0001899,2]
[373141439,1752881455509,-426.2523534,0.0001899,2]
[373141440,1752881455518,-22534.11843379,0.00019,2]
[373141441,1752881455528,-59275.7440282,0.00019,20]
[373141442,1752881455537,-151.0,0.00019,2]
[373141443,1752881455546,-151.0,0.00019,2]
[373141444,1752881455555,-264.104677,0.00019,2]
[373141445,1752881455565,-151.0,0.00019,2]
[373141446,1752881455575,-264.104677,0.00019,2]
[373141447,1752881455585,-151.0,0.00019,2]
[373141448,1752881455594,-151.0,0.00019,2]
[373141449,1752881455603,-151.0,0.00019,2]
[373141450,1752881455612,-151.0,0.00019,2]
[373141451,1752881455621,-151.0,0.00019,2]
[373141452,1752881455630,-267.480686,0.00019,2]
[373141453,1752881455639,-267.480686,0.00019,2]
[373141454,1752881455648,-151.0,0.00019,2]
[373141455,1752881455657,-182.594941,0.00019,2]
[373141456,1752881455667,-182.594941,0.00019,2]
[373141457,1752881455676,-181.557296,0.00019,2]
[373141458,1752881455685,-151.0,0.00019,2]
[373141459,1752881455694,-151.0,0.00019,2]